Cogmind - Beta 16 @@@ ROGUE MODE // 2026.01.31 @ 09:56:00 Player: Dew Result: Destroyed by Y-45 Defender with Heavy Assault Rifle Performance ------------- Evolutions (1) 500 Regions Visited (3) 600 Robots Destroyed (17) 85 Value Destroyed (347) 347 Prototype IDs (0) 0 Alien Tech Used (0) 0 Bonus (0) 0 TOTAL SCORE: 1532 Bonus ------- None Cogmind --------- Core Integrity 0/400 Matter 149/300 Energy 264/265 System Corruption 0% Temperature Cool (0) Movement Core (150) Ox2 Location -9/Materials Parts ------- > --- POWER (1) -------- Improved Ion Engine > --- PROPULSION (3) --- (None) > --- UTILITY (3) ------ (None) > --- WEAPON (2) ------- (None) > --- INVENTORY (5) ---- Flight Unit Peak State ------------ > --- POWER ------------ Light Nuclear Core > --- PROPULSION ------- Flight Unit Flight Unit Flight Unit > --- UTILITY ---------- Small Storage Unit Structural Scanner Terrain Scanner > --- WEAPON ----------- Shotgun Shotgun > --- INVENTORY -------- Ion Engine Aluminum Leg Aluminum Leg Flight Unit Sensor Array Grenade Launcher [Rating: 13] Favorites ----------- Power Ion Engine Engine Ion Engine Power Core Light Nuclear Core Propulsion Aluminum Leg Leg Aluminum Leg Flight Unit Flight Unit Utility Small Storage Unit Device Terrain Scanner Storage Small Storage Unit Weapon Assault Rifle Ballistic Gun Assault Rifle Ballistic Cannon Light Cannon Launcher Grenade Launcher Build | -11 -10 -10 -9 ------- Run | Yrd Mat Min Mat Slots Evolved 2 | . . . 2 Power . | . . . . Propulsion 1 | . . . 1 Utility 1 | . . . 1 Weapon . | . . . . Parts Attached 17 | . 5 1 11 Power 3 | . 2 . 1 Engine 2 | . 1 . 1 Core 1 | . 1 . . Reactor . | . . . . Propulsion 7 | . 2 1 4 Treads . | . . . . Leg 2 | . . . 2 Wheel . | . . . . Hover . | . . . . Flight 5 | . 2 1 2 Utility 3 | . 1 . 2 Device 3 | . 1 . 2 Storage . | . . . . Processor . | . . . . Hackware . | . . . . Protection . | . . . . Artifact . | . . . . Weapon 4 | . . . 4 Energy Gun . | . . . . Energy Cannon . | . . . . Ballistic Gun 2 | . . . 2 Ballistic Cannon 1 | . . . 1 Launcher 1 | . . . 1 Special Weapon . | . . . . Impact Weapon . | . . . . Slashing Weapon . | . . . . Piercing Weapon . | . . . . Special Melee Weapon . | . . . . Unidentified Prototypes . | . . . . Parts Lost 17 | . 1 . 16 Power 2 | . . . 2 Propulsion 7 | . 1 . 6 Utility 4 | . . . 4 Weapon 4 | . . . 4 Highest Loss Streak 10 | . 1 . 10 To Critical Strikes . | . . . . Average Backups 5 | 6 7 7 3 Power . | 1 1 1 . Propulsion 3 | 4 4 4 1 Utility . | . . 1 . Weapon . | 1 1 1 . Tool/Special . | . . . . Unused Backups 13 | . 10 1 2 Power 1 | . 1 . . Propulsion 6 | . 6 . . Utility 2 | . 1 . 1 Weapon 4 | . 2 1 1 Tool/Special . | . . . . Average Slot Usage (%) 79 | . 98 87 60 Engine 6 | . 8 . 5 Core 5 | . 5 14 3 Leg 13 | . 25 . 4 Flight 10 | . 1 28 14 Device 13 | . 13 14 13 Storage 12 | . 14 14 11 Ballistic Gun 16 | . 28 16 5 Peak Build Rating 13 | 6 9 9 13 Average Rating 7 | 6 7 8 6 On Entrance 7 | 6 6 9 8 Avg Prop Armor Cover (%) 4 | . . . 4 Naked Turns . | . . . . Heaviest Build 18 | 14 15 13 18 Greatest Support 20 | 20 20 8 20 Greatest Overweight (x) 4 | . 3 1 4 Average Overweight (x) . | . . 1 . Largest Inventory Capacity 8 | 8 8 8 8 Average Capacity 7 | 8 8 8 7 Most Carried 8 | 6 8 8 8 Average Carried 5 | 6 7 7 3 Final Capacity 8 | 8 8 8 5 Final Carried 8 | 6 7 8 1 Class Distribution -------------------- 88% | Mutant 11% | Scavenger-Mutant Dominant Class ---------------- Mutant | -10/Materials Mutant | -10/Mines Mutant | -9/Materials Resources | -11 -10 -10 -9 ----------- Run | Yrd Mat Min Mat Matter Collected 419 | 200 144 41 34 Remotely . | . . . . Salvage Created 363 | . 227 . 136 Parts 37 | . 16 . 21 Haulers Intercepted . | . . . . Recyclers Shooed . | . . . . Parts Field Recycled . | . . . . Retrieved Matter . | . . . . Parts Self-Destructed . | . . . . Prevented . | . . . . Parts Restored . | . . . . Kills | -11 -10 -10 -9 ------- Run | Yrd Mat Min Mat Combat Hostiles Destroyed 17 | . 7 . 10 Guns 14 | . 7 . 7 AOE 3 | . . . 3 Classes Destroyed 3 | . 2 . 1 Swarmer 12 | . 3 . 9 Grunt 4 | . 4 . . Sentry 1 | . . . 1 Best Kill Streak 10 | . 3 . 10 Combat Bots Only 10 | . 3 . 10 Max Kills in Single Turn 4 | . 1 . 4 Gunslinging . | . . . . Exploded 3 | . . . 3 Melee . | . . . . Uniques/NPCs Destroyed . | . . . . Combat | -11 -10 -10 -9 -------- Run | Yrd Mat Min Mat Hostile Shots Fired 243 | . 40 . 203 Missed 72 | . 8 . 64 Hits 171 | . 32 . 139 Projectile 171 | . 32 . 139 Critical Strikes 4 | . . . 4 Damage Taken 1805 | . 353 . 1452 Core 465 | . 63 . 402 Absorbed by Shields . | . . . . Regen/Repaired (Parts) 17 | . 17 . . Core Remaining (%) 87 | 100 . 74 . Volleys Fired 33 | . 20 . 13 Largest 2 | . 2 . 2 Hottest 53 | . 40 . 53 Shots Fired 66 | . 40 . 26 Gun 63 | . 40 . 23 Cannon . | . . . . Launcher 3 | . . . 3 Special . | . . . . Kinetic 63 | . 40 . 23 Thermal . | . . . . Explosive 3 | . . . 3 Electromagnetic . | . . . . Robot Hit Streak 4 | . 4 . 3 Robot Miss Streak 8 | . 4 . 8 Penetration Max . | . . . . Secondary Targets . | . . . . Shots Hit Robots 34 | . 22 . 12 Core Hits 25 | . 14 . 11 Critical Kills . | . . . . Critical Parts Destroyed . | . . . . Critical Strikes . | . . . . Melee Attacks . | . . . . Impact . | . . . . Slashing . | . . . . Piercing . | . . . . Sneak Attacks . | . . . . Combat Hostiles . | . . . . Follow-up Attacks . | . . . . Damage Inflicted 631 | . 278 . 353 Guns 413 | . 278 . 135 Cannons . | . . . . Explosions 218 | . . . 218 Melee . | . . . . Ramming . | . . . . Kinetic 413 | . 278 . 135 Thermal . | . . . . Explosive 218 | . . . 218 Electromagnetic . | . . . . Impact . | . . . . Slashing . | . . . . Piercing . | . . . . Highest Corruption . | . . . . Average Corruption . | . . . . Corruption Purged . | . . . . Corruption Blocked . | . . . . Overload Shots . | . . . . Overflow Damage . | . . . . Projectiles . | . . . . Explosions . | . . . . Melee . | . . . . Knockbacks . | . . . . Impact . | . . . . Kinetic . | . . . . Secondary . | . . . . Self-Inflicted Damage 24 | . . . 24 Shots 1 | . . . 1 Rammed . | . . . . Targets Rammed 2 | . . . 2 Kicked 2 | . . . 2 Crushed . | . . . . Highest Temperature 10 | . 10 . 8 Average Temperature 4 | . 3 . 8 Received Heat Transfer 366 | . 150 . 216 Siege Activations . | . . . . Martial Activations . | . . . . Shielding Activations . | . . . . Robots Disrupted . | . . . . Combat Hostiles . | . . . . Robots Corrupted . | . . . . Combat Hostiles . | . . . . Parts Fried . | . . . . Impact Corruptions . | . . . . Robots Melted . | . . . . Combat Hostiles . | . . . . Parts Melted . | . . . . Heat Transferred . | . . . . Parts Sabotaged . | . . . . Parts Stolen . | . . . . Parts Stripped . | . . . . Power Chain Reactions . | . . . . Alert | -11 -10 -10 -9 ------- Run | Yrd Mat Min Mat Maximum Alert Level 1 | . . . 1 Low Security (%) 79 | 100 100 100 56 Level 1 20 | . . . 43 Level 2 . | . . . . Level 3 . | . . . . Level 4 . | . . . . Level 5 . | . . . . High Security . | . . . . Max Security . | . . . . Peak Influence 341 | . 100 34 341 Initial 34 | . . 34 5 Average 98 | . 29 26 175 Influence Increases 625 | . 200 . 425 Destroy 0b10 Robot/C 340 | . 140 . 200 Destroy Leader 60 | . 30 . 30 Successful Hack 4 | . . . 4 Disable Machine 30 | . . . 30 Destroy Structure 11 | . . . 11 Partial Spotted 30 | . . . 30 Lose Combat Pursuer 150 | . 30 . 120 Influence Decreases 504 | . 110 76 318 Entered New Map 65 | . . 56 9 Time Decay 269 | . 100 20 149 Lost Part 170 | . 10 . 160 Squads Dispatched 2 | . 1 . 1 Investigation 1 | . 1 . . Extermination . | . . . . Reinforcement 1 | . . . 1 Assault . | . . . . Garrison . | . . . . Intercept . | . . . . Searches Triggered . | . . . . Construction Impeded . | . . . . Haulers Reinforced . | . . . . Active Scanning Responses . | . . . . Cargo Convoy Interrupts . | . . . . Stealth | -11 -10 -10 -9 --------- Run | Yrd Mat Min Mat Distress Signals 3 | . 1 . 2 Communications Jammed . | . . . . Distress Signals . | . . . . Times Spotted 36 | . 13 . 23 Peak Tracking Total 8 | . 4 . 8 Tactical Retreats 2 | . 1 . 1 Traps | -11 -10 -10 -9 ------- Run | Yrd Mat Min Mat Traps Triggered 1 | . 1 . . Indirectly . | . . . . Trap Hack Attempts . | . . . . Triggered . | . . . . Disarmed . | . . . . Reprogrammed . | . . . . Reused . | . . . . Traps Extracted . | . . . . Installed . | . . . . Triggered . | . . . . Machines | -11 -10 -10 -9 ---------- Run | Yrd Mat Min Mat Machines Disabled 2 | . . . 2 Max in Single Turn 2 | . . . 2 Machines Repaired . | . . . . Machines Dismantled . | . . . . Machines Sabotaged . | . . . . Overloaded Fab Kills . | . . . . Hacking | -11 -10 -10 -9 --------- Run | Yrd Mat Min Mat Machines Accessed 3 | . 2 . 1 Terminals 2 | . 1 . 1 Fabricators . | . . . . Repair Stations 1 | . 1 . . Recycling Units . | . . . . Scanalyzers . | . . . . Garrison Access . | . . . . Total Hacks 8 | . 5 . 3 Successful 4 | . 3 . 1 Failed 4 | . 2 . 2 Catastrophic . | . . . . Database Lockouts . | . . . . Manual 4 | . 1 . 3 Terminals 5 | . 2 . 3 Fabricators . | . . . . Repair Stations 3 | . 3 . . Recycling Units . | . . . . Scanalyzers . | . . . . Garrison Access . | . . . . Terminal Hacks 2 | . 1 . 1 Maintenance Status 1 | . . . 1 Zone Layout 1 | . 1 . . Fabricator Hacks . | . . . . Repair Station Hacks 2 | . 2 . . Scan Component 1 | . 1 . . Repair 1 | . 1 . . Recycling Unit Hacks . | . . . . Scanalyzer . | . . . . Garrison Access Hacks . | . . . . Unauthorized Hacks . | . . . . Terminals . | . . . . Fabricators . | . . . . Repair Stations . | . . . . Recycling Units . | . . . . Scanalyzers . | . . . . Garrison Access . | . . . . Data Cores Recovered . | . . . . Used . | . . . . Hacking Detections 2 | . 1 . 1 Full Trace Events . | . . . . Feedback Events . | . . . . Feedback Blocked . | . . . . Robot Schematics Acquired . | . . . . Robots Built . | . . . . Authchips . | . . . . Time . | . . . . Total Robot Build Rating . | . . . . Part Schematics Acquired . | . . . . Parts Built . | . . . . Authchips . | . . . . Time . | . . . . Total Part Build Rating . | . . . . Part Studies Acquired . | . . . . Parts Repaired 1 | . 1 . . Time 38 | . 38 . . Parts Recycled . | . . . . Recycled Matter . | . . . . Retrieved Matter . | . . . . Retrieved Components . | . . . . Parts Scanalyzed . | . . . . Part Schematics Acquired . | . . . . Parts Damaged . | . . . . Bothacking | -11 -10 -10 -9 ------------ Run | Yrd Mat Min Mat Used RIF Installer . | . . . . Robots Hacked . | . . . . Non-combat . | . . . . Combat . | . . . . Robot Hacks Applied . | . . . . Relay Couplers Released . | . . . . Fabnet Peak Effective % . | . . . . Robots Rewired . | . . . . Allies Hacked . | . . . . Hacks Repelled . | . . . . Allies | -11 -10 -10 -9 -------- Run | Yrd Mat Min Mat Total Allies . | . . . . Largest Group . | . . . . Highest-Rated Group . | . . . . Highest-Rated Ally . | . . . . Total Orders . | . . . . Ally Attacks . | . . . . Total Damage . | . . . . Kills . | . . . . Allies Corrupted . | . . . . Allies Melted . | . . . . Intel | -11 -10 -10 -9 ------- Run | Yrd Mat Min Mat Active Infowar (turns) 633 | . 303 48 282 Sensors 31 | . . . 31 Terrain 463 | . 303 48 112 Structural 281 | . . . 281 Robot Analysis Total . | . . . . Derelict Logs Recovered 1 | . . 1 . Drone Launches . | . . . . Drone Recoveries . | . . . . Exploration | -11 -10 -10 -9 ------------- Run | Yrd Mat Min Mat Turns Passed 698 | 3 313 48 334 Spaces Moved 550 | 3 167 38 342 Core 53 | . . . 53 Treads . | . . . . Legs 216 | 3 150 . 63 Wheels . | . . . . Hover . | . . . . Flight 281 | . 17 38 226 Fastest Speed 34 | 120 117 117 34 Average Speed 94 | 120 121 117 79 Slowest Speed 280 | 120 280 117 250 Overloaded Moves . | . . . . Propulsion Burnouts . | . . . . Robots Hopped . | . . . . Potential Cave-ins . | . . . . Cave-ins Triggered . | . . . . Exploration Rate (%) 26 | 2 37 18 47 Regions Visited 3 Branch Regions 1 Pre-discovered Areas . | . . . . Known Exits Taken . | . . . . Unknown Exits Taken 3 | 1 1 1 . Scrap Searched 2 | . . 2 . Spaces Dug . | . . . . Terrain Destroyed 10 | . . . 10 Melee . | . . . . Projectile . | . . . . AOE 10 | . . . 10 Terrain Rammed . | . . . . Walls Destroyed . | . . . . Machines Disabled . | . . . . Actions | -11 -10 -10 -9 --------- Run | Yrd Mat Min Mat Total 661 | 2 241 42 376 Wait 32 | . 32 . . Move 547 | 2 166 37 342 Hop . | . . . . Pick Up 11 | . 7 2 2 Fast Attach 7 | . 5 . 2 Attach 11 | . 1 . 10 Detach 3 | . 2 . 1 Swap 4 | . . 1 3 Drop 11 | . 8 2 1 Fire 33 | . 20 . 13 Melee . | . . . . Ram . | . . . . Kick 2 | . . . 2 Crush . | . . . . Escape Stasis . | . . . . Rewire . | . . . . Trap . | . . . . Miscellaneous . | . . . . Route ------- -11/Scrapyard -10/Materials (discovered 2 exits: [*Min] / [Sub]) -10/Mines -9/Materials (discovered 1 exit: [*Mat]) History --------- Turn | Location | Event 1 | -11/Scrapyard | Discovered new exit (range 3) 4 | -11/Scrapyard | Entered Materials 91 | -10/Materials | Discovered new exit (range 16) 144 | -10/Materials | Discovered new exit (range 13) 240 | -10/Materials | Repaired Lgt. Nuclear Core 317 | -10/Materials | Entered Mines 349 | -10/Mines | Learned Materials terminal intel 355 | -10/Mines | Discovered new exit (range 9) 358 | -10/Mines | Build established: Mutant 365 | -10/Mines | Entered Materials 365 | -9/Materials | Evolved 2 slots: Propulsion x1, Utility x1 366 | -9/Materials | Loaded intel: 12 terminal locations 512 | -9/Materials | Destroyed 10 combat bots 567 | -9/Materials | Lost 10 parts (1p4n2u3w) 636 | -9/Materials | Core integrity fell below 50% 657 | -9/Materials | Core integrity fell below 20% 678 | -9/Materials | Lost 4 parts (1p2n1u) 698 | -9/Materials | Discovered new exit (range 16) 699 | -9/Materials | Destroyed by Y-45 Defender with Heavy Assault Rifle Last Messages --------------- 00523_ K-01 Serf collects debris. 00524_ U-05 Engineer lays Concrete. 00531_ Shotgun destroyed. 00536_ Flight Unit destroyed. 00552_ K-01 Serf collects debris. 00585_ Aluminum Leg destroyed. 00591_ Kicked S-10 Pest out of the way. 00615_ Aluminum Leg destroyed. 00621_ W-16 Scout sends out distress signal. 00626_ Ion Engine destroyed. 00637_ W-16 Scout destroyed. 00646_ R-06 Scavenger collects Hover Unit. 00647_ Structural Scanner destroyed. 00653_ Acquired Imp. Ion Engine. 00658_ Acquired Lgt. Cannon. 00677_ Acquired 27 matter. 00682_ Lgt. Cannon destroyed. 00690_ Sml. Storage Unit destroyed. 00693_ M-13 Machinist repairs S-10 Pest Flight Unit. 00698_ EXIT=FOUND Map ----- +----------------------------------------------------+ | ???????????????????????????????????? | | ???????????????????????????????????? | | ???????????????????????????????????? | | ???????????????????????????????????? | | ???????????????????????????????????? | | ???????????????????????????????????? | | ???????????????????????????????????? | | ???????????????????????????????????? | | ???????????????????????????????????? | | ???????????????????????????????????? | | ???????????????????????? ????????? | | ???????????????????????? < ????????? | | ???????????????????????? #???????? | | ???????????????????????# #???????? | | ???????????????????????# #???????? | | ???????????????????????# #???????? | | ??????????????????????## #???????? | | ??????????????????????? #???????? | | ??????????????????????? #???????? | | ??????????????????????? #???????? | | ???????????????????????# +???????? | | ???????????????????????# #???????? | | ??????????????????????## #???????? | | ??????????????????????## #???????? | | ????????????????######## #???????? | | ????????????????# # @ #???????? | | ????????????????# [ # #???????? | | ????????????????# + +???????? | | ????????????????# "T" #s # ??????? | | ????????????????# """ # # ??????? | | ????????????????# # ######### | | ????????????????##### ## # # | | ???????????????######### # """ # | | ???????????????# #Y # """ # | | ???????????????# + Ym# """ # | | ???????????????# # a # # | | ???????????????######### + """ # | | ??????????????????????## # """ # | | ?#############????????## w# """ # | | ?#############????????## # # | | ?## ##?######### # # | | ?## "" ##?######### # # | | ?## """ """ ##?## ##+###### | | ?## """ S" ##?## ## ###### | | ?## """ ##?## ######### | | ?## ##?## #### # # | | ### ##?## #### # ?? | | ### ##### #### # """ ?? | | #+##+########## #### # """""?? | | # #### # """""?? | +----------------------------------------------------+ Best States ------------- Heat Dissipation 28 Energy Generation 14 Energy Capacity 265 Matter Stores 300 Matter Capacity 300 Sight Range 16 Robot Scan Range 14 Terrain Scan Range 14 Terrain Scan Density 10 Evasion (%) 63 Item Schematics ----------------- None Robot Schematics ------------------ None Fabricated ------------ Nothing Repaired ---------- Lgt. Nuclear Core | 66% | -10/Materials Studied --------- None Alien Tech Used ----------------- None Achievements -------------- None Challenges ------------ None Game ------ Seed LauncherKineticDrivehammer Manual? 0 Play Time 00:11:41 Cumulative 22.1 hours Start 2026.01.31 @ 09:42:11 End 2026.01.31 @ 09:56:00 Sessions 1 Manual Loads 0 Difficulty Rogue Special Mode None Game No. 37 Rogue 37 Adventurer 0 Explorer 0 Win Type - Total 0 Types 0/0/0/0/0/0/0/0/0/0 Lore% 9 Gallery% 21 Achievement% 16 Wizard Run 0 Options --------- Layout 0 ASCII 0 Keyboard 0 Movement Numpad Keybinds 0 Fullscreen 1 Font 24/Smallcaps Map View 183x50 Zoom Use 0% Tactical HUD 1 Map Filters NONE Filters NONE Steam 1 RUN: 70a71014-f59d-44c0-be9a-deca3ea7a383